bitfinex/quotes_SOLUSD_20250802
["timestamp","ask_amount","ask_price","bid_price","bid_amount"]
[1754108752434,1.2874596,164.61,164.58,7.9769594]
[1754108753133,1.2874596,164.61,164.59,7.9769594]
[1754108755532,0.6074596,164.61,164.59,7.9769594]
[1754108755738,0.6074596,164.61,164.6,7.9769594]
[1754108756237,1.2874596,164.61,164.6,7.9769594]
[1754108763045,43.8274596,164.61,164.6,7.9769594]
[1754108764351,43.8274596,164.61,164.56,0.52]
[1754108764534,0.65,164.6,164.59,7.9769594]
[1754108768431,0.65,164.6,164.56,0.52]
[1754108768651,0.6074596,164.59,164.56,0.52]
[1754108768831,42.52,164.58,164.56,0.06]
[1754108769034,43.17,164.58,164.56,0.06]
[1754108769232,42.52,164.58,164.56,0.06]
[1754108769846,42.52,164.58,164.57,7.9769594]
[1754108771237,43.7774596,164.58,164.56,0.06]
[1754108771439,0.65,164.57,164.56,0.06]
[1754108771747,43.1274596,164.58,164.56,8.0369594]
[1754108771938,43.1274596,164.58,164.57,7.9769594]
[1754108772141,42.52,164.58,164.57,7.9769594]
[1754108773052,43.17,164.58,164.57,7.9769594]
[1754108774326,42.52,164.58,164.57,7.9769594]
[1754108776029,42.52,164.59,164.57,8.4369594]
[1754108776230,43.1274596,164.59,164.58,7.9769594]
[1754108776454,42.52,164.59,164.58,7.9769594]
[1754108777447,43.17,164.59,164.58,7.9769594]
[1754108778552,43.17,164.59,164.56,0.06]
[1754108778752,43.17,164.59,164.58,7.9769594]
[1754108780059,42.17,164.59,164.58,7.9769594]
[1754108780247,41.52,164.59,164.58,7.9769594]
[1754108783044,42.1274596,164.59,164.58,7.9769594]
[1754108783464,42.7774596,164.59,164.58,7.9769594]
[1754108783871,42.7774596,164.59,164.57,7.9769594]
[1754108784162,4.7357538,164.58,164.57,7.9769594]
[1754108784346,5.3432134,164.58,164.57,7.9769594]
[1754108791672,5.3432134,164.58,164.56,8.0369594]
[1754108791971,43.29,164.57,164.56,8.0369594]
[1754108794041,42.6,164.57,164.56,8.0369594]
[1754108795068,42.6,164.57,164.56,0.06]
[1754108795272,42.6,164.57,164.56,8.0369594]
[1754108796958,43.2074596,164.57,164.56,8.0369594]
[1754108797664,43.8974596,164.57,164.56,8.0369594]
[1754108797865,43.29,164.57,164.56,8.0369594]
[1754108798065,43.29,164.57,164.56,0.06]
[1754108798379,43.29,164.57,164.56,8.0369594]
[1754108799355,43.29,164.57,164.56,0.06]
[1754108799574,43.29,164.57,164.56,8.0369594]
[1754108800784,43.29,164.57,164.56,5.1740285]
[1754108803267,42.54,164.57,164.56,5.1740285]
[1754108805268,43.1474596,164.57,164.56,5.1740285]
[1754108805481,43.8374596,164.57,164.56,5.1740285]
[1754108806163,43.23,164.57,164.56,5.1740285]
[1754108808861,42.54,164.57,164.56,5.1740285]
[1754108809162,43.1474596,164.57,164.56,5.1740285]
[1754108809979,42.54,164.57,164.56,5.1740285]
[1754108810282,42.54,164.57,164.56,5.6340285]
[1754108810483,42.54,164.59,164.56,26.0901425]
[1754108810689,42.54,164.59,164.58,5.1140285]
[1754108810876,46.62920053,164.59,164.58,5.1140285]
[1754108811481,42.54,164.59,164.58,5.1140285]
[1754108812583,29.4,164.6,164.58,5.5740285]
[1754108812773,71.94,164.6,164.59,5.1140285]
[1754108813505,29.4,164.6,164.59,5.1140285]
[1754108813899,0.69,164.64,164.59,5.5740285]
[1754108814193,29.4,164.65,164.56,38.778174]
[1754108814194,43.23,164.65,164.63,5.1140285]
[1754108814770,43.23,164.65,164.64,5.1140285]
[1754108815118,0.69,164.65,164.64,5.1140285]
[1754108815399,43.23,164.65,164.64,5.1140285]
[1754108815612,43.8374596,164.65,164.64,5.1140285]
[1754108816202,43.23,164.65,164.64,5.1140285]
[1754108816786,43.23,164.65,164.64,7.9818355]
[1754108822690,43.25,164.65,164.64,7.9818355]
[1754108824401,42.54,164.65,164.64,7.9818355]
[1754108826305,0.03,164.67,164.64,16.423671]
[1754108826511,43.26,164.67,164.66,7.9818355]
[1754108827725,0.03,164.67,164.66,7.9818355]
[1754108831116,0.03,164.67,164.66,8.4418355]
[1754108831317,0.03,164.67,164.66,7.9818355]
[1754108835926,0.03,164.67,164.66,8.4418355]
[1754108836634,0.03,164.67,164.66,7.9818355]
[1754108837712,0.03,164.67,164.66,8.4418355]
[1754108837918,0.03,164.67,164.66,7.9818355]
[1754108838117,0.03,164.67,164.66,10.4152955]
[1754108838844,0.03,164.67,164.66,7.53889171]
[1754108842337,0.03,164.67,164.66,7.99889171]
[1754108843043,0.03,164.67,164.66,7.53889171]
[1754108851953,0.03,164.68,164.66,7.99889171]
[1754108852162,43.8874596,164.72,164.71,5.10543171]
[1754108852163,43.28,164.72,164.71,5.10543171]
[1754108852337,0.78,164.72,164.71,5.10543171]
[1754108861676,0.1,164.72,164.71,5.10543171]
[1754108861876,0.1,164.72,164.71,5.56543171]
[1754108862057,0.1,164.72,164.71,5.10543171]
[1754108863373,0.1,164.72,164.71,7.53815171]
[1754108869996,0.78,164.72,164.71,7.53815171]
[1754108870203,0.1,164.72,164.71,7.53815171]
[1754108875505,0.1,164.74,164.71,45.20456252]
[1754108875703,0.1,164.74,164.73,21.89011568]
[1754108876077,0.1,164.74,164.73,24.78224468]
[1754108877913,0.78,164.77,164.73,24.78224468]
[1754108878104,0.78,164.77,164.76,5.10543171]
[1754108889207,0.75,164.77,164.76,5.10543171]
[1754108891001,0.1,164.77,164.76,5.10543171]
[1754108897021,0.1,164.77,164.76,5.56543171]
[1754108897717,0.1,164.77,164.76,5.10543171]
[1754108902234,0.1,164.77,164.76,5.56543171]
[1754108902439,0.1,164.77,164.76,5.10543171]
[1754108902818,0.75,164.77,164.76,5.10543171]
[1754108903658,0.1,164.77,164.76,5.10543171]
[1754108905719,0.1,164.77,164.76,31.56543171]
[1754108906121,0.65,164.8,164.76,33.99726471]
[1754108906422,0.1,164.82,164.79,5.10543171]
[1754108906845,0.1,164.82,164.81,5.10543171]
[1754108907547,0.75,164.82,164.81,5.10543171]
[1754108916471,0.1,164.82,164.81,5.56543171]
[1754108917984,0.1,164.82,164.81,22.35011568]
[1754108918356,30.1,164.87,164.81,22.35011568]
[1754108918558,42.42,164.88,164.86,5.10543171]
[1754108918753,42.42,164.88,164.87,5.10543171]
[1754108918952,46.50673645,164.88,164.87,5.10543171]
[1754108919162,4.78673645,164.88,164.87,5.10543171]
[1754108919553,0.7,164.88,164.87,5.10543171]
[1754108919750,4.78673645,164.88,164.87,5.10543171]
[1754108920484,0.7,164.88,164.87,5.10543171]
[1754108924580,30.1,164.88,164.87,5.10543171]
[1754108927990,72.5,164.88,164.87,5.10543171]
[1754108928374,72.53,164.88,164.87,5.10543171]
[1754108930575,72.53,164.88,164.81,34.02936797]
[1754108930885,1.3074596,164.87,164.86,5.10543171]
[1754108931469,0.7,164.87,164.86,5.10543171]
[1754108932705,1.3074596,164.87,164.86,5.10543171]
[1754108933607,1.3074596,164.87,164.83,5.10543171]
[1754108933896,43.1,164.86,164.83,5.10543171]
[1754108934078,0.6074596,164.85,164.83,5.10543171]
[1754108934275,0.7,164.84,164.83,5.10543171]
[1754108936216,0.7,164.84,164.79,0.46]
[1754108936393,0.6074596,164.83,164.81,5.10543171]
[1754108936577,0.7,164.82,164.81,5.10543171]
[1754108939723,0.7,164.82,164.78,0.46]
[1754108940017,0.7,164.82,164.81,5.10543171]
[1754108941536,30.0074596,164.83,164.81,5.10543171]
[1754108941722,29.4,164.83,164.82,5.10543171]
[1754108944936,30.08,164.83,164.82,5.10543171]
[1754108945105,29.4,164.83,164.82,5.10543171]
[1754108945304,43.08,164.84,164.82,5.10543171]
[1754108945511,43.08,164.84,164.83,5.10543171]
[1754108947832,0.68,164.84,164.83,5.10543171]
[1754108948435,0.68,164.85,164.83,5.10543171]
[1754108948752,0.68,164.85,164.84,5.10543171]
[1754108949029,42.4,164.86,164.84,5.10543171]
[1754108949216,43.08,164.86,164.85,5.10543171]
[1754108950134,42.4,164.86,164.85,5.10543171]
[1754108950641,29.4,164.87,164.85,5.10543171]
[1754108950820,30.08,164.87,164.86,5.10543171]
[1754108952835,29.4,164.87,164.86,5.10543171]
[1754108953736,30.08,164.87,164.86,5.10543171]
[1754108953947,0.03,164.88,164.86,5.10543171]
[1754108954240,0.03,164.88,164.87,5.10543171]
[1754108954647,0.71,164.88,164.83,5.105431]
[1754108954864,0.71,164.88,164.87,5.10543171]
[1754108956640,0.71,164.88,164.86,5.10543171]
[1754108956848,0.6074596,164.87,164.86,5.10543171]
[1754108957239,1.2874596,164.87,164.86,5.10543171]
[1754108958160,0.68,164.87,164.86,5.10543171]
[1754108958322,0.68,164.87,164.83,0.46]
[1754108958521,0.68,164.87,164.86,5.10543171]
[1754108960049,0.68,164.87,164.83,0.46]
[1754108960259,0.68,164.87,164.86,5.10543171]
[1754108960431,30.0374596,164.88,164.86,5.10543171]
[1754108960627,30.0374596,164.88,164.87,5.10543171]
[1754108961052,30.7174596,164.88,164.87,5.10543171]
[1754108961352,29.43,164.88,164.87,5.10543171]
[1754108962755,30.11,164.88,164.87,5.10543171]
[1754108976881,30.11,164.88,164.86,5.10543171]
[1754108977080,1.3074596,164.87,164.86,5.10543171]
[1754108978669,29.43,164.88,164.86,5.10543171]
[1754108978870,29.43,164.88,164.87,5.10543171]
[1754108979865,30.13,164.88,164.87,5.10543171]
[1754108980966,29.43,164.88,164.87,5.10543171]
[1754108981867,30.13,164.88,164.87,5.10543171]
[1754108983084,30.13,164.88,164.86,5.10543171]
[1754108983284,0.7,164.87,164.86,5.10543171]
[1754108986768,30.7374596,164.88,164.84,0.46]
[1754108986963,30.13,164.88,164.86,5.10543171]
[1754108987162,0.7,164.87,164.86,5.10543171]
[1754108990966,30.13,164.88,164.86,5.10543171]
[1754108992579,0.7,164.87,164.86,5.10543171]
[1754108995195,29.43,164.88,164.86,5.10543171]
[1754108995393,30.13,164.88,164.86,5.10543171]
[1754108997687,30.13,164.88,164.84,33.065432]
[1754108997688,30.13,164.88,164.87,5.10543171]
[1754108997892,34.22877572,164.88,164.87,5.10543171]
[1754109000498,34.22877572,164.88,164.86,5.10543171]
[1754109000693,5.37680357,164.87,164.82,0.06]
[1754109000899,33.49934397,164.86,164.83,5.10543171]
[1754109001103,5.37680357,164.85,164.84,5.10543171]
[1754109001790,29.4,164.86,164.84,5.10543171]
[1754109001989,29.4,164.86,164.85,5.10543171]
[1754109002193,33.4980938,164.86,164.85,5.10543171]
[1754109004491,29.4,164.86,164.85,5.10543171]
[1754109005474,30.07,164.86,164.85,5.10543171]
[1754109005704,30.07,164.86,164.82,18.292095]
[1754109006006,30.07,164.86,164.85,5.10543171]
[1754109012201,30.07,164.86,164.82,0.52]
[1754109012391,29.4,164.86,164.85,5.10543171]
[1754109012896,30.07,164.86,164.85,5.10543171]
[1754109014708,30.1,164.86,164.85,5.10543171]
[1754109015396,29.43,164.86,164.85,5.10543171]
[1754109015803,30.1,164.86,164.85,5.10543171]
[1754109017191,30.1,164.86,164.82,0.52]
[1754109017394,29.43,164.86,164.85,5.10543171]
[1754109018208,30.1,164.86,164.85,5.10543171]
[1754109019206,29.4,164.85,164.83,5.10543171]
[1754109019507,0.6074596,164.84,164.83,5.10543171]
[1754109019697,1.2774596,164.84,164.83,5.10543171]
[1754109020720,0.67,164.84,164.83,5.10543171]
[1754109021315,29.4,164.85,164.83,5.56543171]
[1754109021506,29.4,164.85,164.84,5.10543171]
[1754109021708,29.4,164.85,164.84,5.56543171]
[1754109025705,29.4,164.85,164.84,5.10543171]
[1754109028116,30.07,164.85,164.84,5.10543171]
[1754109030512,29.4,164.85,164.84,5.10543171]
[1754109031034,0.03,164.86,164.84,23.79641771]
[1754109031209,0.03,164.86,164.85,5.56543171]
[1754109032818,0.03,164.86,164.85,7.99593471]
[1754109034921,0.03,164.86,164.85,24.78061868]
[1754109035115,0.03,164.86,164.85,50.78061868]
[1754109035906,0.03,164.86,164.85,93.08061868]
[1754109039526,0.03,164.86,164.85,92.62061868]
[1754109041433,0.73,164.86,164.85,92.62061868]
[1754109041818,0.73,164.86,164.85,75.83593471]
[1754109045330,0.73,164.86,164.85,49.83593471]
[1754109045524,0.73,164.86,164.85,7.53593471]
[1754109047819,0.73,164.86,164.85,2.430503]
[1754109048032,0.73,164.86,164.85,7.53593471]
[1754109053118,0.03,164.86,164.85,7.53593471]
[1754109053318,0.73,164.86,164.85,7.53593471]
[1754109056936,0.73,164.86,164.82,0.06]
[1754109057147,0.73,164.86,164.82,18.294311]
[1754109057148,0.6074596,164.85,164.82,18.294311]
[1754109057314,0.7,164.84,164.82,18.294311]
[1754109057514,1.3074596,164.84,164.82,23.39974271]
[1754109057940,0.7,164.83,164.82,5.16543171]
[1754109061241,0.67,164.85,164.82,5.16543171]
[1754109061452,0.6374596,164.86,164.84,5.10543171]
[1754109061818,4.7237232,164.86,164.82,0.06]
[1754109062034,0.67,164.85,164.82,5.16543171]
[1754109062244,0.6074596,164.84,164.82,0.06]
[1754109062442,0.6074596,164.84,164.82,5.16543171]
[1754109062846,0.67,164.83,164.82,5.16543171]
[1754109066157,30.6774596,164.85,164.82,5.16543171]
[1754109066340,30.0074596,164.85,164.83,5.10543171]
[1754109066547,0.67,164.84,164.83,5.10543171]
[1754109066747,0.67,164.84,164.82,5.16543171]
[1754109067258,0.67,164.83,164.82,5.16543171]
[1754109067453,30.0074596,164.85,164.82,5.16543171]
[1754109067636,0.67,164.84,164.82,5.16543171]
[1754109067838,0.67,164.84,164.83,5.10543171]
[1754109068259,30.6774596,164.85,164.83,5.10543171]
[1754109069249,0.67,164.84,164.83,5.10543171]
[1754109069854,0.67,164.84,164.82,0.06]
[1754109070163,0.67,164.84,164.82,5.16543171]
[1754109071041,0.67,164.84,164.82,0.06]
[1754109073948,0.67,164.84,164.82,5.16543171]
[1754109075462,29.4,164.83,164.82,5.16543171]
[1754109075664,30.07,164.83,164.82,5.16543171]
[1754109079555,30.07,164.83,164.82,0.06]
[1754109081475,0.67,164.83,164.82,0.06]
[1754109082170,0.67,164.83,164.82,5.16543171]
[1754109082852,0.67,164.84,164.82,0.06]
[1754109083169,0.6074596,164.83,164.82,0.06]
[1754109083473,0.67,164.84,164.82,0.06]
[1754109083657,0.67,164.83,164.82,0.06]
[1754109084057,0.67,164.83,164.82,5.16543171]
[1754109085779,1.3074596,164.85,164.82,5.16543171]
[1754109085956,0.6374596,164.85,164.82,5.16543171]
[1754109086161,0.67,164.84,164.82,5.16543171]
[1754109089676,0.6374596,164.85,164.83,5.10543171]
[1754109089877,1.3074596,164.85,164.83,5.10543171]
[1754109092570,0.03,164.85,164.84,5.10543171]
[1754109092777,0.03,164.85,164.84,5.56543171]
[1754109093081,1.3274596,164.85,164.84,5.10543171]
[1754109093379,0.72,164.85,164.84,5.10543171]
[1754109094086,0.72,164.85,164.82,44.293203]
[1754109094285,0.03,164.85,164.84,5.10543171]
[1754109097694,0.03,164.85,164.84,5.56543171]
[1754109097867,0.03,164.85,164.84,7.99637671]
[1754109098697,0.03,164.85,164.84,7.53637671]
[1754109099392,0.03,164.85,164.84,7.99637671]
[1754109100479,0.03,164.85,164.84,2.890945]
[1754109100680,0.03,164.85,164.84,7.99637671]
[1754109102101,0.03,164.85,164.84,7.53637671]
[1754109103400,0.03,164.85,164.84,7.99637671]
[1754109104103,0.03,164.85,164.84,7.53637671]
[1754109106095,0.03,164.85,164.84,7.99637671]
[1754109108086,0.03,164.85,164.84,7.53637671]
[1754109113108,0.03,164.85,164.84,24.78106068]
[1754109115909,0.72,164.85,164.84,7.53637671]
[1754109122515,0.72,164.85,164.82,0.06]
[1754109122516,1.3274596,164.85,164.83,5.10543171]
[1754109122695,0.6374596,164.85,164.83,5.10543171]
[1754109123020,0.7,164.84,164.83,5.10543171]
[1754109124013,0.6374596,164.85,164.83,5.10543171]
[1754109124229,0.03,164.85,164.84,5.10543171]
[1754109128028,0.73,164.85,164.84,5.10543171]
[1754109131733,30.13,164.85,164.84,5.10543171]
[1754109140724,29.43,164.85,164.84,5.10543171]
[1754109141447,29.43,164.85,164.84,5.56543171]
[1754109141633,29.43,164.85,164.84,5.10543171]
[1754109143444,0.03,164.85,164.84,5.10543171]
[1754109144242,0.03,164.85,164.84,7.53637671]
[1754109145237,0.73,164.85,164.84,7.53637671]
[1754109145950,0.73,164.85,164.84,5.10543171]
[1754109146130,0.73,164.85,164.84,7.53637771]
[1754109147536,0.73,164.85,164.84,5.10543171]
[1754109149756,0.73,164.85,164.84,7.53637771]
[1754109150437,0.03,164.85,164.84,7.53637771]
[1754109152055,0.03,164.85,164.84,24.78106168]
[1754109152252,0.03,164.86,164.84,24.78106168]
[1754109152454,0.03,164.86,164.85,5.10543171]
[1754109157568,0.7,164.86,164.85,5.10543171]
[1754109157869,0.7,164.86,164.85,7.53593471]
[1754109162786,0.7,164.86,164.85,5.10543171]
[1754109165468,0.03,164.86,164.85,5.10543171]
[1754109166274,0.03,164.86,164.85,5.56543171]
[1754109166488,0.03,164.86,164.85,22.35011568]
[1754109168085,0.03,164.86,164.85,21.89011568]
[1754109168281,0.03,164.86,164.85,22.35011568]
[1754109168489,0.03,164.86,164.85,48.35011568]
[1754109169256,0.03,164.86,164.85,47.89011568]
[1754109175068,0.03,164.86,164.85,66.11777968]
[1754109177099,0.7,164.86,164.85,49.33309571]
[1754109177564,0.7,164.86,164.85,31.10543171]
[1754109178960,30.1,164.86,164.85,31.10543171]
[1754109180389,30.1,164.86,164.85,49.33531071]
[1754109180883,30.1,164.86,164.85,31.10543171]
[1754109181374,29.43,164.86,164.85,31.10543171]
[1754109181761,30.13,164.86,164.85,31.10543171]
[1754109184102,29.43,164.86,164.85,31.10543171]
[1754109184595,29.43,164.86,164.85,31.56543171]
[1754109184768,29.43,164.86,164.85,47.89011568]
[1754109184977,0.03,164.86,164.85,47.89011568]
[1754109192694,0.73,164.86,164.85,47.89011568]
[1754109194794,0.03,164.86,164.85,47.89011568]
[1754109195186,0.03,164.86,164.85,48.35011568]
[1754109195689,0.03,164.87,164.86,68.31184252]
[1754109196000,0.03,164.87,164.86,110.51184252]
[1754109197010,0.73,164.87,164.86,90.09011568]
[1754109204325,0.73,164.87,164.86,47.89011568]
[1754109204529,0.73,164.87,164.86,5.10543171]
[1754109208627,0.73,164.87,164.84,26.06]
[1754109208827,0.73,164.87,164.86,5.10543171]
[1754109209126,0.73,164.87,164.86,5.16543171]
[1754109212618,0.03,164.87,164.86,5.16543171]
[1754109213507,0.03,164.87,164.86,5.62543171]
[1754109213712,0.03,164.87,164.86,5.16543171]
[1754109215623,0.03,164.87,164.86,22.41011568]
[1754109217338,0.03,164.87,164.86,68.83184252]
[1754109218029,0.03,164.88,164.87,16.78468397]
[1754109218217,0.03,164.88,164.87,84.97184252]
[1754109219634,0.7,164.92,164.9,26.0]
[1754109219834,0.7,164.92,164.91,5.10543171]
[1754109224249,0.7,164.94,164.91,47.30543171]
[1754109224646,0.7,164.94,164.93,5.10543171]
[1754109227928,146.1,164.96,164.93,5.10543171]
[1754109228257,0.7,164.95,164.91,42.66]
[1754109228547,146.8,164.96,164.92,17.24468397]
[1754109228737,146.1,164.96,164.93,42.18]
[1754109229049,0.7,164.95,164.93,42.18]
[1754109229248,146.1,164.96,164.94,5.10543171]
[1754109229553,146.1,164.96,164.95,5.10543171]
[1754109232251,0.7,164.97,164.95,5.10543171]
[1754109232426,0.7,164.97,164.96,5.10543171]
[1754109236262,0.7,164.99,164.96,5.10543171]
[1754109236552,0.7,164.99,164.98,5.10543171]
[1754109239054,0.6074596,165.0,164.98,5.10543171]
[1754109239239,0.7,164.99,164.96,20.42172684]
[1754109239445,0.7,164.99,164.98,5.10543171]
[1754109240156,146.1,165.01,164.98,5.10543171]
[1754109240465,146.1,165.01,165.0,5.10543171]
[1754109241061,146.82,165.01,165.0,5.10543171]
[1754109242647,146.1,165.01,165.0,5.10543171]
[1754109243159,146.1,165.01,164.98,42.62]
[1754109243365,146.1,165.01,165.0,5.10543171]
[1754109244238,0.72,165.02,165.0,5.10543171]
[1754109244555,0.72,165.02,165.01,5.10543171]
[1754109246368,0.72,165.02,165.0,18.213278]
[1754109246560,0.72,165.02,165.01,5.10543171]
[1754109248082,0.72,165.03,165.01,5.10543171]
[1754109248242,29.4,165.02,164.99,18.215489]
[1754109248444,30.12,165.02,165.01,5.10543171]
[1754109251274,30.12,165.02,165.01,23.31870971]
[1754109251484,0.75,165.04,165.01,23.31870971]
[1754109251648,0.03,165.04,165.03,5.10543171]
[1754109252258,0.75,165.04,165.03,5.10543171]
[1754109254261,0.03,165.04,165.02,18.212171]
[1754109254586,0.03,165.04,165.03,5.10543171]
[1754109254968,0.03,165.04,165.01,0.46]
[1754109255166,0.75,165.04,165.03,5.10543171]
[1754109255661,0.75,165.04,165.02,18.211066]
[1754109255861,29.4,165.03,165.02,18.211066]
[1754109256063,27.9,165.03,165.02,23.31649771]
[1754109256389,28.62,165.03,165.02,18.211066]
[1754109256566,27.9,165.03,165.02,5.10543171]
[1754109256956,28.62,165.03,165.02,5.10543171]
[1754109257575,27.12,165.03,165.02,5.10543171]
[1754109261291,25.62,165.03,165.02,5.10543171]
[1754109261869,25.62,165.03,165.02,23.31760371]
[1754109261870,0.72,165.03,165.02,23.31760371]
[1754109262171,145.9574596,165.06,165.02,23.31760371]
[1754109262364,145.9574596,165.06,165.04,5.10543171]
[1754109262564,143.9574596,165.06,165.04,5.10543171]
[1754109263000,142.4574596,165.06,165.04,5.10543171]
[1754109263305,142.4574596,165.06,165.03,5.10543171]
[1754109264268,0.72,165.05,165.03,5.10543171]
[1754109266996,0.72,165.04,165.0,26.69]
[1754109267169,0.72,165.04,165.03,5.10543171]
[1754109267369,0.72,165.04,165.01,18.903277]
[1754109267695,0.72,165.05,165.03,5.10543171]
[1754109267892,0.72,165.05,165.04,5.10543171]
[1754109268487,142.4574596,165.06,165.04,5.10543171]
[1754109268686,185.3374596,165.06,165.04,5.10543171]
[1754109269010,183.8374596,165.06,165.04,5.10543171]
[1754109270003,183.1174596,165.06,165.04,5.10543171]
[1754109270184,0.72,165.05,165.04,5.10543171]
[1754109271400,140.9574596,165.06,165.04,5.10543171]
[1754109271576,141.6374596,165.06,165.04,5.10543171]
[1754109272307,0.68,165.05,165.04,5.10543171]
[1754109275005,42.82,165.05,165.04,5.10543171]
[1754109275301,183.1274596,165.06,165.04,5.78543171]
[1754109275514,183.1274596,165.06,165.05,5.10543171]
[1754109275711,42.85,165.06,165.05,5.10543171]
[1754109276497,0.71,165.06,165.05,5.10543171]
[1754109276687,0.71,165.06,165.04,10.89086371]
[1754109276895,0.71,165.06,165.03,5.10543171]
[1754109277710,22.3,165.04,165.03,5.10543171]
[1754109277912,22.98,165.04,165.03,5.10543171]
[1754109279504,0.68,165.04,165.03,5.10543171]
[1754109280021,0.68,165.04,165.02,10.950863]
[1754109280211,0.68,165.04,165.03,5.10543171]
[1754109281194,188.24,165.05,165.03,5.10543171]
[1754109281515,188.92,165.05,165.04,5.10543171]
[1754109282302,188.24,165.05,165.04,5.10543171]
[1754109282501,188.92,165.05,165.04,5.10543171]
[1754109287333,188.24,165.05,165.04,5.10543171]
[1754109287699,146.1,165.05,165.04,5.78543171]
[1754109288827,146.1,165.05,165.04,11.57086271]
[1754109290207,0.03,165.06,165.04,11.57086271]
[1754109290413,0.03,165.06,165.05,5.78543171]
[1754109290839,0.03,165.06,165.05,11.57086371]
[1754109293649,0.03,165.06,165.05,28.35554768]
[1754109295631,0.03,165.06,165.05,10.89086371]
[1754109295810,0.03,165.06,165.05,11.57086371]
[1754109296835,0.03,165.06,165.05,10.89086371]
[1754109299350,0.03,165.06,165.05,11.57086371]
[1754109300442,0.03,165.06,165.05,10.89086371]
[1754109300653,0.72,165.06,165.04,5.16543171]
[1754109300839,0.72,165.06,165.04,0.06]
[1754109301234,4.80720043,165.06,165.04,0.06]
[1754109301748,0.69,165.05,165.04,5.16543171]
[1754109302128,0.69,165.05,165.04,0.06]
[1754109302550,42.83,165.05,165.04,0.06]
[1754109303643,42.83,165.05,165.04,5.16543171]
[1754109304140,42.83,165.05,165.04,0.06]
[1754109306552,42.14,165.05,165.04,5.16543171]
[1754109307163,188.27,165.06,165.04,5.16543171]
[1754109307457,146.13,165.06,165.05,5.10543171]
[1754109307968,146.13,165.06,165.05,5.76543171]
[1754109308265,146.13,165.06,165.05,5.10543171]
[1754109313163,146.13,165.06,165.04,0.72]
[1754109313372,146.13,165.06,165.05,5.10543171]
[1754109314062,146.82,165.06,165.05,5.10543171]
[1754109314571,146.82,165.06,165.04,5.16543171]
[1754109314869,0.69,165.05,165.04,5.16543171]
[1754109319251,146.82,165.06,165.04,5.16543171]
[1754109319478,146.82,165.06,165.05,5.10543171]
[1754109320678,188.96,165.06,165.05,5.10543171]
[1754109321858,146.13,165.06,165.05,5.10543171]
[1754109323079,146.13,165.06,165.04,0.06]
[1754109323374,146.82,165.06,165.05,5.10543171]
[1754109323682,146.13,165.06,165.05,5.10543171]
[1754109324460,146.82,165.06,165.05,5.10543171]
[1754109324656,146.13,165.06,165.05,5.10543171]
[1754109326792,146.13,165.06,165.05,5.76543171]
[1754109329486,0.03,165.06,165.05,22.55011568]
[1754109330467,0.03,165.06,165.05,48.55011568]
[1754109332664,0.03,165.06,165.05,50.97752168]
[1754109338868,0.03,165.06,165.05,93.09752168]
[1754109339376,0.03,165.08,165.07,42.78468397]
[1754109339578,0.03,165.08,165.07,90.01011568]
[1754109339773,0.03,165.08,165.07,90.72011568]
[1754109340777,0.03,165.08,165.07,90.01011568]
[1754109341378,0.03,165.08,165.07,90.72011568]
[1754109341777,0.03,165.08,165.07,108.92344668]
[1754109344280,0.03,165.08,165.07,108.21344668]
[1754109344477,0.7,165.08,165.07,90.01011568]
[1754109344780,0.03,165.08,165.07,90.01011568]
[1754109346586,0.03,165.08,165.07,108.92455168]
[1754109347594,146.77,165.12,165.08,16.78468397]
[1754109347800,22.3,165.11,165.09,42.1]